[Event "MCR rapid mládeže 2023 U16"]
[Site "Harachov, Czech Republic"]
[Date "2023.09.09"]
[Round "6.31"]
[White "Vo, Daniel"]
[Black "Bartak, Tobias"]
[Result "1/2-1/2"]
[TimeControl "20min+5s/move"]
[WhiteElo "1445"]
[BlackElo "1259"]

1. e4 {[%clk 00:20:07]} {[%emt 00:00:02]} c5 {[%clk 00:20:05]} {[%emt
00:00:06]} 2. Nf3 {[%clk 00:20:09]} {[%emt 00:00:02]} Nc6 {[%clk 00:20:08]}
{[%emt 00:00:02]} 3. d4 {[%clk 00:20:12]} {[%emt 00:00:02]} cxd4 {[%clk
00:20:12]} {[%emt 00:00:02]} 4. Nxd4 {[%clk 00:20:16]} {[%emt 00:00:01]} g6
{[%clk 00:20:16]} {[%emt 00:00:02]} 5. Be3 {[%clk 00:20:18]} {[%emt 00:00:02]}
Bg7 {[%clk 00:20:09]} {[%emt 00:00:11]} 6. Nc3 {[%clk 00:20:21]} {[%emt
00:00:02]} Nf6 {[%clk 00:20:03]} {[%emt 00:00:11]} 7. f3 {[%clk 00:20:12]}
{[%emt 00:00:14]} O-O {[%clk 00:19:56]} {[%emt 00:00:11]} 8. Be2 {[%clk
00:20:11]} {[%emt 00:00:06]} e6 {[%clk 00:19:37]} {[%emt 00:00:24]} 9. O-O
{[%clk 00:20:05]} {[%emt 00:00:12]} d5 {[%clk 00:19:27]} {[%emt 00:00:15]} 10.
Bg5 {[%clk 00:19:41]} {[%emt 00:00:28]} e5 {[%clk 00:18:58]} {[%emt 00:00:35]}
11. Nxc6 {[%clk 00:19:34]} {[%emt 00:00:12]} bxc6 {[%clk 00:18:53]} {[%emt
00:00:09]} 12. Bxf6 {[%clk 00:19:34]} {[%emt 00:00:05]} Qxf6 {[%clk 00:18:42]}
{[%emt 00:00:16]} 13. exd5 {[%clk 00:19:36]} {[%emt 00:00:04]} Rd8 {[%clk
00:18:35]} {[%emt 00:00:12]} 14. Ne4 {[%clk 00:19:33]} {[%emt 00:00:06]} Qe7
{[%clk 00:18:03]} {[%emt 00:00:38]} 15. d6 {[%clk 00:19:30]} {[%emt 00:00:08]}
Qd7 {[%clk 00:17:47]} {[%emt 00:00:20]} 16. c4 {[%clk 00:19:13]} {[%emt
00:00:22]} f5 {[%clk 00:17:32]} {[%emt 00:00:20]} 17. Nc3 {[%clk 00:18:50]}
{[%emt 00:00:28]} Qxd6 {[%clk 00:17:29]} {[%emt 00:00:09]} 18. Qxd6 {[%clk
00:18:54]} {[%emt 00:00:01]} Rxd6 {[%clk 00:17:33]} 19. Rad1 {[%clk 00:18:58]}
{[%emt 00:00:02]} Rd4 {[%clk 00:17:00]} {[%emt 00:00:38]} 20. c5 {[%clk
00:18:20]} {[%emt 00:00:42]} Be6 {[%clk 00:16:06]} {[%emt 00:01:00]} 21. Rfe1
{[%clk 00:18:03]} {[%emt 00:00:21]} Rad8 {[%clk 00:15:50]} {[%emt 00:00:20]} 22.
Rxd4 {[%clk 00:17:57]} {[%emt 00:00:13]} exd4 {[%clk 00:15:44]} {[%emt
00:00:12]} 23. Na4 {[%clk 00:17:48]} {[%emt 00:00:13]} Bxa2 {[%clk 00:15:39]}
{[%emt 00:00:09]} 24. Bd3 {[%clk 00:17:48]} {[%emt 00:00:05]} Bb3 {[%clk
00:15:20]} {[%emt 00:00:24]} 25. Ra1 {[%clk 00:17:45]} {[%emt 00:00:08]} Re8
{[%clk 00:15:17]} {[%emt 00:00:08]} 26. Ra3 {[%clk 00:17:38]} {[%emt 00:00:12]}
Bxa4 {[%clk 00:15:17]} {[%emt 00:00:06]} 27. Rxa4 {[%clk 00:17:41]} {[%emt
00:00:01]} Re3 {[%clk 00:15:21]} {[%emt 00:00:01]} 28. Bc4+ {[%clk 00:17:39]}
{[%emt 00:00:07]} Kf8 {[%clk 00:14:50]} {[%emt 00:00:36]} 29. Kf2 {[%clk
00:17:08]} {[%emt 00:00:35]} Re7 {[%clk 00:14:42]} {[%emt 00:00:12]} 30. Ra6
{[%clk 00:17:09]} {[%emt 00:00:06]} Rc7 {[%clk 00:13:36]} {[%emt 00:01:10]} 31.
b4 {[%clk 00:16:58]} {[%emt 00:00:16]} Be5 {[%emt 00:01:53]} 32. g3 {[%clk
00:16:50]} {[%emt 00:00:11]} h5 {[%emt 00:00:31]} 33. f4 {[%clk 00:16:53]} Bf6
{[%clk 00:11:22]} {[%emt 00:00:09]} 34. Bd3 {[%clk 00:16:23]} {[%emt 00:00:35]}
Ke7 {[%clk 00:10:45]} {[%emt 00:00:42]} 35. Ra1 {[%clk 00:15:34]} {[%emt
00:00:55]} Rb7 {[%clk 00:10:06]} {[%emt 00:00:44]} 36. Re1+ {[%clk 00:15:30]}
{[%emt 00:00:08]} Kd7 {[%clk 00:09:59]} {[%emt 00:00:12]} 37. Rb1 {[%clk
00:15:26]} {[%emt 00:00:10]} Ke6 {[%clk 00:09:29]} {[%emt 00:00:34]} 38. Bc4+
{[%clk 00:15:22]} {[%emt 00:00:10]} Kd7 {[%clk 00:09:31]} {[%emt 00:00:03]} 39.
b5 {[%clk 00:15:25]} {[%emt 00:00:02]} cxb5 {[%clk 00:09:23]} {[%emt 00:00:13]}
40. Bxb5+ {[%clk 00:15:28]} {[%emt 00:00:02]} Kc7 {[%clk 00:09:16]} {[%emt
00:00:11]} 41. Ke2 {[%clk 00:15:14]} {[%emt 00:00:19]} a6 {[%clk 00:09:04]}
{[%emt 00:00:18]} 42. Bd3 {[%clk 00:15:04]} {[%emt 00:00:15]} Rxb1 {[%clk
00:09:02]} {[%emt 00:00:07]} 43. Bxb1 {[%clk 00:15:08]} {[%emt 00:00:01]} Kc6
{[%emt 00:00:01]} 44. Kd3 {[%clk 00:15:11]} Kxc5 {[%clk 00:09:09]} {[%emt
00:00:02]} 45. Ba2 {[%clk 00:15:15]} {[%emt 00:00:01]} g5 {[%clk 00:09:10]}
{[%emt 00:00:05]} 46. fxg5 {[%clk 00:15:09]} {[%emt 00:00:11]} Bxg5 {[%clk
00:09:11]} {[%emt 00:00:03]} 47. h4 {[%clk 00:15:13]} {[%emt 00:00:01]} Be3
{[%clk 00:09:12]} {[%emt 00:00:04]} 48. Bf7 {[%clk 00:15:14]} {[%emt 00:00:04]}
a5 {[%clk 00:08:54]} {[%emt 00:00:24]} 49. Bxh5 {[%clk 00:15:14]} {[%emt
00:00:05]} a4 {[%clk 00:08:52]} {[%emt 00:00:07]} 50. Bf7 {[%clk 00:15:11]}
{[%emt 00:00:07]} Kb4 {[%clk 00:08:50]} {[%emt 00:00:07]} 51. Be6 {[%clk
00:15:05]} {[%emt 00:00:12]} a3 {[%clk 00:08:42]} {[%emt 00:00:13]} 52. h5
{[%clk 00:15:02]} {[%emt 00:00:07]} 1/2-1/2

[Event "MCR rapid mládeže 2023 U16"]
[Site "Harachov, Czech Republic"]
[Date "2023.09.09"]
[Round "6.32"]
[White "Trejbal, Jindrich"]
[Black "Mauric, Jan"]
[Result "0-1"]
[TimeControl "20min+5s/move"]
[WhiteElo "1088"]
[BlackElo "1260"]

1. d4 {[%clk 00:20:07]} {[%emt 00:00:03]} e6 {[%clk 00:20:07]} {[%emt
00:00:04]} 2. Nc3 {[%clk 00:20:01]} {[%emt 00:00:10]} Nf6 {[%clk 00:20:09]}
{[%emt 00:00:03]} 3. Bg5 {[%clk 00:19:22]} {[%emt 00:00:44]} Be7 {[%clk
00:20:02]} {[%emt 00:00:12]} 4. e3 {[%clk 00:19:09]} {[%emt 00:00:18]} h6
{[%clk 00:20:02]} {[%emt 00:00:05]} 5. Bxf6 {[%clk 00:18:51]} {[%emt 00:00:22]}
Bxf6 {[%clk 00:20:05]} {[%emt 00:00:02]} 6. Bd3 {[%clk 00:18:26]} {[%emt
00:00:31]} d5 {[%clk 00:19:57]} {[%emt 00:00:13]} 7. Nge2 {[%clk 00:16:58]}
{[%emt 00:01:33]} Bd7 {[%clk 00:19:51]} {[%emt 00:00:11]} 8. O-O {[%clk
00:16:15]} {[%emt 00:00:47]} a6 {[%clk 00:19:46]} {[%emt 00:00:11]} 9. Nf4
{[%clk 00:14:17]} {[%emt 00:02:02]} Nc6 {[%clk 00:19:36]} {[%emt 00:00:16]} 10.
Nh5 {[%clk 00:12:50]} {[%emt 00:01:31]} Nb4 {[%clk 00:18:40]} {[%emt 00:01:02]}
11. a3 {[%clk 00:11:41]} {[%emt 00:01:14]} Nxd3 {[%clk 00:18:40]} {[%emt
00:00:05]} 12. cxd3 {[%clk 00:11:24]} {[%emt 00:00:21]} g6 {[%clk 00:18:18]}
{[%emt 00:00:29]} 13. Nf4 {[%clk 00:10:15]} {[%emt 00:01:12]} b5 {[%clk
00:17:43]} {[%emt 00:00:41]} 14. Nce2 {[%clk 00:08:07]} {[%emt 00:02:12]} Rc8
{[%clk 00:17:30]} {[%emt 00:00:19]} 15. Rc1 {[%clk 00:06:01]} {[%emt 00:02:11]}
h5 {[%clk 00:14:54]} {[%emt 00:02:42]} 16. Kh1 {[%clk 00:04:33]} {[%emt
00:01:32]} g5 {[%clk 00:14:13]} {[%emt 00:00:46]} 17. Nh3 {[%clk 00:04:11]}
{[%emt 00:00:25]} e5 {[%clk 00:12:53]} {[%emt 00:01:27]} 18. Nhg1 {[%clk
00:03:24]} {[%emt 00:00:51]} exd4 {[%clk 00:12:41]} {[%emt 00:00:17]} 19. exd4
{[%clk 00:03:16]} {[%emt 00:00:13]} g4 {[%clk 00:12:18]} {[%emt 00:00:29]} 20.
Re1 {[%clk 00:02:53]} {[%emt 00:00:28]} Be6 {[%clk 00:11:51]} {[%emt 00:00:32]}
21. Nf4 {[%clk 00:02:23]} {[%emt 00:00:33]} Kd7 {[%clk 00:11:54]} {[%emt
00:00:04]} 22. Qc2 {[%clk 00:01:48]} {[%emt 00:00:40]} c6 {[%clk 00:11:44]}
{[%emt 00:00:15]} 23. Nxe6 {[%clk 00:01:31]} {[%emt 00:00:21]} fxe6 {[%clk
00:11:48]} {[%emt 00:00:01]} 24. Qe2 {[%clk 00:01:33]} {[%emt 00:00:03]} Qe7
{[%clk 00:11:42]} {[%emt 00:00:12]} 25. Qc2 {[%clk 00:00:55]} {[%emt 00:00:42]}
Bxd4 {[%clk 00:11:12]} {[%emt 00:00:35]} 26. f3 {[%clk 00:00:53]} {[%emt
00:00:07]} Bxg1 {[%clk 00:10:55]} {[%emt 00:00:23]} 27. Rxg1 {[%clk 00:00:51]}
{[%emt 00:00:07]} gxf3 {[%clk 00:10:57]} {[%emt 00:00:03]} 28. gxf3 {[%clk
00:00:52]} {[%emt 00:00:04]} Qf6 {[%clk 00:10:53]} {[%emt 00:00:09]} 29. Rg3
{[%clk 00:00:38]} {[%emt 00:00:18]} h4 {[%emt 00:00:07]} 30. Rh3 {[%clk
00:00:41]} Qf5 {[%emt 00:00:15]} 31. Qg2 {[%clk 00:00:39]} {[%emt 00:00:05]}
Rhg8 {[%clk 00:10:35]} {[%emt 00:00:15]} 32. Qf1 {[%clk 00:00:42]} {[%emt
00:00:02]} Rcf8 {[%clk 00:10:34]} {[%emt 00:00:06]} 33. Rc2 {[%clk 00:00:31]}
{[%emt 00:00:16]} Rf6 {[%clk 00:10:02]} {[%emt 00:00:37]} 34. Rf2 {[%clk
00:00:29]} {[%emt 00:00:06]} Rfg6 {[%clk 00:10:04]} {[%emt 00:00:04]} 35. Rxh4
{[%clk 00:00:23]} {[%emt 00:00:11]} Rg1+ {[%clk 00:10:01]} {[%emt 00:00:08]} 36.
Qxg1 {[%clk 00:00:27]} {[%emt 00:00:01]} Rxg1+ {[%clk 00:10:04]} {[%emt
00:00:01]} 37. Kxg1 {[%clk 00:00:30]} {[%emt 00:00:01]} Qxd3 {[%clk 00:10:07]}
{[%emt 00:00:03]} 38. Rg2 {[%clk 00:00:18]} {[%emt 00:00:16]} Qb1+ {[%clk
00:10:09]} {[%emt 00:00:03]} 39. Kf2 {[%clk 00:00:21]} {[%emt 00:00:03]} Qxb2+
{[%clk 00:10:13]} {[%emt 00:00:02]} 40. Kg3 {[%clk 00:00:24]} {[%emt 00:00:01]}
Qxa3 {[%clk 00:10:14]} {[%emt 00:00:03]} 41. Rh7+ {[%clk 00:00:26]} {[%emt
00:00:04]} Kd6 {[%clk 00:10:19]} 42. h4 {[%clk 00:00:28]} {[%emt 00:00:03]} Qd3
{[%clk 00:10:16]} {[%emt 00:00:08]} 43. Rh5 {[%clk 00:00:27]} {[%emt 00:00:05]}
b4 {[%clk 00:10:10]} {[%emt 00:00:13]} 44. Rb2 {[%clk 00:00:20]} {[%emt
00:00:11]} b3 {[%clk 00:10:08]} {[%emt 00:00:07]} 45. Rg5 {[%clk 00:00:11]}
{[%emt 00:00:39]} c5 {[%clk 00:10:09]} {[%emt 00:00:03]} 46. Rg8 {[%clk
00:00:09]} {[%emt 00:00:08]} c4 {[%clk 00:10:06]} {[%emt 00:00:08]} 47. Rb8
{[%clk 00:00:12]} {[%emt 00:00:02]} Kc7 {[%clk 00:10:08]} {[%emt 00:00:03]} 48.
Rg8 {[%clk 00:00:09]} {[%emt 00:00:07]} Qc3 {[%clk 00:10:10]} {[%emt 00:00:04]}
49. Re2 {[%clk 00:00:10]} {[%emt 00:00:03]} Kd7 {[%clk 00:09:56]} {[%emt
00:00:20]} 50. Rg6 {[%clk 00:00:10]} {[%emt 00:00:05]} e5 {[%clk 00:09:22]}
{[%emt 00:00:39]} 51. Rg5 {[%clk 00:00:09]} {[%emt 00:00:06]} b2 {[%clk
00:09:16]} {[%emt 00:00:11]} 52. Rgxe5 {[%clk 00:00:09]} {[%emt 00:00:04]}
Qxe5+ {[%clk 00:09:16]} {[%emt 00:00:05]} 53. Rxe5 {[%clk 00:00:13]} {[%emt
00:00:02]} b1=Q {[%clk 00:09:18]} {[%emt 00:00:02]} 54. Rxd5+ {[%clk 00:00:15]}
{[%emt 00:00:04]} Ke6 {[%clk 00:09:19]} {[%emt 00:00:04]} 55. Rg5 {[%clk
00:00:09]} {[%emt 00:00:09]} Qg1+ {[%clk 00:09:23]} {[%emt 00:00:03]} 56. Kf4
{[%clk 00:00:13]} {[%emt 00:00:01]} Qc1+ {[%clk 00:09:21]} {[%emt 00:00:06]} 57.
Kg4 {[%clk 00:00:12]} {[%emt 00:00:04]} c3 {[%clk 00:08:31]} {[%emt 00:00:58]}
58. Rf5 {[%clk 00:00:08]} {[%emt 00:00:08]} Qg1+ {[%clk 00:08:28]} {[%emt
00:00:09]} 59. Kf4 {[%clk 00:00:11]} {[%emt 00:00:01]} Qh2+ {[%clk 00:08:30]}
{[%emt 00:00:03]} 60. Kg5 {[%clk 00:00:08]} {[%emt 00:00:08]} Qxh4+ {[%clk
00:08:28]} {[%emt 00:00:08]} 61. Kg6 {[%clk 00:00:11]} {[%emt 00:00:02]} Qh7
{[%clk 00:08:23]} {[%emt 00:00:10]} 62. Kg5 {[%clk 00:00:08]} {[%emt 00:00:07]}
Qxf5+ {[%clk 00:08:26]} {[%emt 00:00:02]} 63. Kh4 {[%clk 00:00:11]} {[%emt
00:00:02]} Qg6 {[%clk 00:08:24]} {[%emt 00:00:07]} 64. Kh3 {[%clk 00:00:14]}
{[%emt 00:00:02]} Qg1 {[%clk 00:08:28]} {[%emt 00:00:01]} 65. Kh4 {[%clk
00:00:14]} {[%emt 00:00:05]} Qg2 {[%clk 00:08:31]} {[%emt 00:00:03]} 66. Kh5
{[%clk 00:00:14]} {[%emt 00:00:04]} Kf5 {[%clk 00:08:35]} {[%emt 00:00:02]} 67.
Kh4 {[%clk 00:00:15]} {[%emt 00:00:03]} Qh2+ {[%clk 00:08:38]} {[%emt
00:00:03]} 0-1

[Event "MCR rapid mládeže 2023 U16"]
[Site "Harachov, Czech Republic"]
[Date "2023.09.09"]
[Round "6.33"]
[White "Kozusnik, Jan"]
[Black "Bukovskij, Dmitri"]
[Result "1/2-1/2"]
[TimeControl "20min+5s/move"]
[WhiteElo "1399"]
[BlackElo "1291"]

1. e4 {[%clk 00:20:08]} {[%emt 00:00:01]} c5 {[%clk 00:20:06]} {[%emt
00:00:04]} 2. Nf3 {[%clk 00:20:05]} {[%emt 00:00:08]} e6 {[%clk 00:20:11]}
{[%emt 00:00:01]} 3. d4 {[%clk 00:20:07]} {[%emt 00:00:03]} cxd4 {[%clk
00:20:14]} {[%emt 00:00:02]} 4. Nxd4 {[%clk 00:20:11]} Nf6 {[%clk 00:20:18]} 5.
Nc3 {[%clk 00:20:14]} {[%emt 00:00:02]} Bb4 {[%clk 00:20:22]} {[%emt 00:00:01]}
6. Bd3 {[%clk 00:20:10]} {[%emt 00:00:09]} d5 {[%clk 00:20:24]} {[%emt
00:00:03]} 7. O-O {[%clk 00:18:08]} {[%emt 00:02:06]} Bxc3 {[%clk 00:20:27]}
{[%emt 00:00:04]} 8. bxc3 {[%clk 00:18:05]} {[%emt 00:00:07]} dxe4 {[%emt
00:00:03]} 9. Bc4 {[%clk 00:17:01]} {[%emt 00:01:07]} O-O {[%clk 00:20:29]}
{[%emt 00:00:07]} 10. Bg5 {[%clk 00:16:44]} {[%emt 00:00:22]} h6 {[%clk
00:20:32]} {[%emt 00:00:03]} 11. Bxf6 {[%clk 00:15:55]} {[%emt 00:00:53]} Qxf6
{[%clk 00:20:34]} {[%emt 00:00:03]} 12. Qe2 {[%clk 00:15:52]} {[%emt 00:00:06]}
Nc6 {[%clk 00:20:10]} {[%emt 00:00:32]} 13. Qxe4 {[%clk 00:15:24]} {[%emt
00:00:31]} Nxd4 {[%clk 00:20:11]} {[%emt 00:00:05]} 14. cxd4 {[%clk 00:15:26]}
{[%emt 00:00:03]} Rd8 {[%clk 00:19:52]} {[%emt 00:00:23]} 15. c3 {[%clk
00:15:04]} {[%emt 00:00:27]} Rb8 {[%clk 00:19:52]} {[%emt 00:00:04]} 16. Rab1
{[%clk 00:15:01]} {[%emt 00:00:10]} b6 {[%clk 00:19:55]} {[%emt 00:00:03]} 17.
a4 {[%clk 00:14:43]} {[%emt 00:00:22]} Bb7 {[%clk 00:19:58]} {[%emt 00:00:03]}
18. Qg4 {[%clk 00:14:25]} {[%emt 00:00:17]} Rbc8 {[%clk 00:19:49]} {[%emt
00:00:17]} 19. Qe2 {[%clk 00:13:53]} {[%emt 00:00:37]} Qg5 {[%clk 00:19:29]}
{[%emt 00:00:25]} 20. f3 {[%clk 00:13:55]} {[%emt 00:00:05]} Qa5 {[%clk
00:19:30]} {[%emt 00:00:04]} 21. Rfc1 {[%clk 00:13:00]} {[%emt 00:00:59]} Bd5
{[%clk 00:18:26]} {[%emt 00:01:10]} 22. Rb4 {[%clk 00:12:17]} {[%emt 00:00:42]}
Bxc4 {[%clk 00:18:15]} {[%emt 00:00:23]} 23. Rxc4 {[%clk 00:12:07]} {[%emt
00:00:14]} b5 {[%clk 00:18:03]} {[%emt 00:00:17]} 24. Rxc8 {[%clk 00:11:51]}
{[%emt 00:00:20]} Rxc8 {[%clk 00:18:06]} {[%emt 00:00:02]} 25. Qxb5 {[%clk
00:11:51]} {[%emt 00:00:05]} Qxb5 {[%clk 00:18:06]} {[%emt 00:00:06]} 26. axb5
{[%clk 00:11:54]} {[%emt 00:00:02]} Rb8 {[%clk 00:18:10]} 27. c4 {[%clk
00:11:57]} {[%emt 00:00:02]} Rd8 {[%clk 00:18:12]} {[%emt 00:00:03]} 28. Rd1
{[%clk 00:11:46]} {[%emt 00:00:13]} e5 {[%clk 00:18:16]} {[%emt 00:00:03]} 29.
d5 {[%clk 00:11:50]} {[%emt 00:00:02]} Kf8 {[%clk 00:18:20]} {[%emt 00:00:01]}
30. Ra1 {[%clk 00:11:48]} {[%emt 00:00:05]} Rd7 {[%clk 00:18:23]} {[%emt
00:00:03]} 31. Ra6 {[%clk 00:11:13]} {[%emt 00:00:38]} Rc7 {[%clk 00:18:23]}
{[%emt 00:00:07]} 32. Ra4 {[%clk 00:09:40]} {[%emt 00:01:38]} Ke7 {[%clk
00:18:24]} {[%emt 00:00:04]} 33. Kf2 {[%clk 00:07:21]} {[%emt 00:02:24]} Kd6
{[%clk 00:18:25]} {[%emt 00:00:03]} 34. Ra6+ {[%clk 00:07:16]} {[%emt
00:00:11]} Kc5 {[%clk 00:18:24]} {[%emt 00:00:05]} 35. Rc6+ {[%clk 00:06:55]}
{[%emt 00:00:27]} Rxc6 {[%clk 00:18:23]} {[%emt 00:00:06]} 36. dxc6 {[%clk
00:06:57]} {[%emt 00:00:03]} Kd6 {[%clk 00:18:25]} {[%emt 00:00:03]} 37. Ke3
{[%clk 00:06:59]} {[%emt 00:00:02]} f5 {[%clk 00:18:29]} {[%emt 00:00:02]} 38.
g4 {[%clk 00:06:21]} {[%emt 00:00:43]} g6 {[%clk 00:18:30]} {[%emt 00:00:04]}
39. gxf5 {[%clk 00:05:45]} {[%emt 00:00:41]} gxf5 {[%clk 00:18:34]} {[%emt
00:00:01]} 40. f4 {[%clk 00:05:49]} {[%emt 00:00:01]} e4 {[%clk 00:18:37]}
{[%emt 00:00:03]} 41. Kd4 {[%clk 00:05:52]} {[%emt 00:00:01]} a6 {[%clk
00:18:06]} {[%emt 00:00:37]} 42. c5+ {[%clk 00:04:42]} {[%emt 00:01:14]} Kc7
{[%clk 00:18:03]} {[%emt 00:00:08]} 43. bxa6 {[%clk 00:04:19]} {[%emt
00:00:28]} Kxc6 {[%clk 00:17:56]} {[%emt 00:00:13]} 44. Kc4 {[%clk 00:03:25]}
{[%emt 00:00:58]} Kc7 {[%clk 00:17:56]} {[%emt 00:00:05]} 45. Kd4 {[%clk
00:00:22]} {[%emt 00:03:08]} Kc6 {[%emt 00:00:08]} 46. Ke3 {[%clk 00:00:10]}
{[%emt 00:00:15]} Kc7 {[%clk 00:17:53]} {[%emt 00:00:07]} 47. Kd2 {[%clk
00:00:09]} {[%emt 00:00:05]} Kc6 {[%clk 00:17:56]} {[%emt 00:00:02]} 48. Kc3
{[%clk 00:00:12]} {[%emt 00:00:02]} Kc7 {[%clk 00:17:58]} {[%emt 00:00:04]} 49.
Kc4 {[%clk 00:00:08]} {[%emt 00:00:09]} Kc6 {[%emt 00:00:14]} 1/2-1/2

[Event "MCR rapid mládeže 2023 U16"]
[Site "Harachov, Czech Republic"]
[Date "2023.09.09"]
[Round "6.34"]
[White "Vydra, David"]
[Black "Vorlik, Jachym"]
[Result "0-1"]
[TimeControl "20min+5s/move"]
[WhiteElo "1137"]
[BlackElo "1210"]

1. e4 {[%clk 00:20:08]} {[%emt 00:00:02]} e6 {[%clk 00:20:08]} {[%emt
00:00:03]} 2. d4 {[%clk 00:20:11]} {[%emt 00:00:02]} d5 {[%clk 00:20:11]}
{[%emt 00:00:01]} 3. e5 {[%clk 00:20:14]} {[%emt 00:00:02]} c5 {[%clk
00:20:14]} {[%emt 00:00:01]} 4. c3 {[%clk 00:20:18]} {[%emt 00:00:02]} Nc6
{[%clk 00:20:18]} {[%emt 00:00:02]} 5. Nf3 {[%clk 00:20:21]} {[%emt 00:00:01]}
Nge7 {[%clk 00:20:21]} {[%emt 00:00:02]} 6. Na3 {[%clk 00:20:20]} {[%emt
00:00:06]} Ng6 {[%clk 00:19:57]} {[%emt 00:00:29]} 7. Nc2 {[%clk 00:20:05]}
{[%emt 00:00:20]} Be7 {[%clk 00:19:32]} {[%emt 00:00:30]} 8. Be2 {[%clk
00:19:58]} {[%emt 00:00:11]} O-O {[%clk 00:19:29]} {[%emt 00:00:09]} 9. O-O
{[%clk 00:19:49]} {[%emt 00:00:13]} Bd7 {[%clk 00:19:09]} {[%emt 00:00:26]} 10.
Bd3 {[%clk 00:19:36]} {[%emt 00:00:17]} a6 {[%clk 00:17:16]} {[%emt 00:01:58]}
11. Be3 {[%clk 00:19:15]} {[%emt 00:00:26]} c4 {[%clk 00:16:43]} {[%emt
00:00:39]} 12. Be2 {[%clk 00:19:06]} {[%emt 00:00:13]} b5 {[%clk 00:15:53]}
{[%emt 00:00:55]} 13. Qd2 {[%clk 00:18:05]} {[%emt 00:01:06]} Rb8 {[%clk
00:15:21]} {[%emt 00:00:37]} 14. a3 {[%clk 00:17:16]} {[%emt 00:00:54]} f6
{[%clk 00:14:43]} {[%emt 00:00:43]} 15. exf6 {[%clk 00:16:47]} {[%emt
00:00:33]} Bxf6 {[%clk 00:14:28]} {[%emt 00:00:20]} 16. Bg5 {[%clk 00:16:40]}
{[%emt 00:00:11]} Bxg5 {[%clk 00:13:19]} {[%emt 00:01:15]} 17. Nxg5 {[%clk
00:15:52]} {[%emt 00:00:53]} Nf4 {[%clk 00:12:35]} {[%emt 00:00:49]} 18. Bg4
{[%clk 00:14:44]} {[%emt 00:01:10]} Qxg5 {[%clk 00:11:48]} {[%emt 00:00:56]} 19.
Qd1 {[%clk 00:14:00]} {[%emt 00:00:49]} Nd3 {[%clk 00:10:02]} {[%emt 00:01:51]}
20. Be2 {[%clk 00:13:32]} {[%emt 00:00:33]} Nf4 {[%clk 00:09:47]} {[%emt
00:00:20]} 21. Bf3 {[%clk 00:13:23]} {[%emt 00:00:14]} Rf6 {[%clk 00:08:59]}
{[%emt 00:00:52]} 22. g3 {[%clk 00:12:37]} {[%emt 00:00:51]} Rbf8 {[%clk
00:07:45]} {[%emt 00:01:19]} 23. h4 {[%clk 00:12:11]} {[%emt 00:00:32]} Qg6
{[%clk 00:07:43]} {[%emt 00:00:07]} 24. Bg2 {[%clk 00:12:01]} {[%emt 00:00:15]}
Nxg2 {[%clk 00:07:27]} {[%emt 00:00:21]} 25. Kxg2 {[%clk 00:12:03]} {[%emt
00:00:02]} Qf7 {[%clk 00:06:54]} {[%emt 00:00:38]} 26. Qe2 {[%clk 00:12:00]}
{[%emt 00:00:08]} Ne7 {[%clk 00:06:15]} {[%emt 00:00:45]} 27. Nb4 {[%clk
00:11:50]} {[%emt 00:00:15]} a5 {[%clk 00:06:09]} {[%emt 00:00:11]} 28. Nc2
{[%clk 00:11:52]} {[%emt 00:00:02]} Nf5 {[%clk 00:06:03]} {[%emt 00:00:12]} 29.
Ne3 {[%clk 00:11:44]} {[%emt 00:00:14]} Nxe3+ {[%clk 00:05:48]} {[%emt
00:00:19]} 30. Qxe3 {[%clk 00:11:46]} {[%emt 00:00:02]} Rf3 {[%clk 00:05:38]}
{[%emt 00:00:14]} 31. Qe2 {[%clk 00:11:41]} {[%emt 00:00:12]} Rd3 {[%clk
00:05:39]} {[%emt 00:00:04]} 32. Rad1 {[%clk 00:11:37]} {[%emt 00:00:09]} Qf3+
{[%clk 00:05:35]} {[%emt 00:00:09]} 33. Qxf3 {[%clk 00:11:37]} {[%emt
00:00:05]} Rfxf3 {[%clk 00:05:34]} {[%emt 00:00:06]} 34. Kg1 {[%clk 00:10:59]}
{[%emt 00:00:43]} Be8 {[%clk 00:05:24]} {[%emt 00:00:15]} 35. Kg2 {[%clk
00:10:42]} {[%emt 00:00:21]} Bh5 {[%clk 00:05:24]} {[%emt 00:00:05]} 36. Kg1
{[%clk 00:10:31]} {[%emt 00:00:10]} Rxg3+ {[%clk 00:04:59]} {[%emt 00:00:37]}
37. fxg3 {[%clk 00:10:33]} {[%emt 00:00:04]} Rxd1 {[%clk 00:05:02]} {[%emt
00:00:02]} 38. Rxd1 {[%clk 00:10:36]} {[%emt 00:00:02]} Bxd1 {[%clk 00:05:04]}
{[%emt 00:00:02]} 39. Kf2 {[%clk 00:10:40]} {[%emt 00:00:02]} Kf7 {[%clk
00:05:02]} {[%emt 00:00:07]} 40. Ke3 {[%clk 00:10:43]} {[%emt 00:00:01]} Kf6
{[%clk 00:05:05]} {[%emt 00:00:03]} 41. Kf4 {[%clk 00:10:47]} {[%emt 00:00:01]}
h6 {[%clk 00:04:53]} {[%emt 00:00:17]} 42. g4 {[%clk 00:10:47]} {[%emt
00:00:05]} g5+ {[%clk 00:04:49]} {[%emt 00:00:09]} 43. hxg5+ {[%clk 00:10:50]}
{[%emt 00:00:02]} hxg5+ {[%clk 00:04:52]} {[%emt 00:00:02]} 44. Kg3 {[%clk
00:10:52]} {[%emt 00:00:02]} e5 {[%clk 00:04:52]} {[%emt 00:00:06]} 0-1